bitfinex/quotes_BTCUSD_20240905
["timestamp","ask_amount","ask_price","bid_price","bid_amount"]
[1725517578989,0.00082,56921.0,56920.0,1.2580681]
[1725517579435,0.00082,56921.0,56920.0,1.6580681]
[1725517581780,0.00082,56921.0,56920.0,1.9040271]
[1725517582254,0.00082,56921.0,56920.0,1.9060271]
[1725517582737,0.00082,56921.0,56920.0,1.6600681]
[1725517582974,0.00082,56921.0,56920.0,0.43511]
[1725517584138,0.00082,56921.0,56920.0,1.060007]
[1725517584344,0.00082,56921.0,56920.0,1.444466]
[1725517584557,0.00082,56921.0,56920.0,1.198507]
[1725517584775,0.00082,56921.0,56920.0,1.464466]
[1725517585011,0.00082,56921.0,56920.0,1.88598526]
[1725517585243,0.00082,56921.0,56920.0,2.02108526]
[1725517585479,0.00082,56921.0,56920.0,2.02308526]
[1725517585917,0.00082,56925.0,56924.0,0.927903]
[1725517586128,0.00082,56925.0,56924.0,1.082303]
[1725517586349,0.00082,56925.0,56924.0,1.50380426]
[1725517586576,0.00082,56925.0,56924.0,1.74974526]
[1725517586765,0.00082,56925.0,56924.0,1.50380426]
[1725517587002,0.00082,56925.0,56924.0,1.61450426]
[1725517587437,0.00082,56925.0,56924.0,2.01450426]
[1725517589210,0.00082,56948.0,56943.0,0.649757]
[1725517589456,0.00082,56948.0,56943.0,0.672757]
[1725517589690,0.00082,56948.0,56943.0,0.918616]
[1725517589902,0.00082,56948.0,56943.0,0.158039]
[1725517590114,0.00082,56948.0,56943.0,0.03511]
[1725517590324,0.12374,56948.0,56943.0,0.4755017]
[1725517590559,0.00082,56948.0,56943.0,0.4755017]
[1725517590781,0.00082,56948.0,56943.0,0.8442897]
[1725517591039,0.00082,56948.0,56943.0,1.6348077]
[1725517592176,0.00082,56948.0,56947.0,0.06511]
[1725517592396,0.00082,56948.0,56947.0,1.66267762]
[1725517592627,0.00082,56948.0,56947.0,1.83823788]
[1725517593307,0.00082,56948.0,56947.0,1.86123788]
[1725517594884,0.00082,56962.0,56961.0,0.905347]
[1725517595095,0.00082,56962.0,56961.0,1.79750762]
[1725517595313,0.00082,56962.0,56961.0,1.97106788]
[1725517595577,0.00082,56962.0,56961.0,0.84812526]
[1725517595788,0.00082,56962.0,56961.0,0.522891]
[1725517595999,0.00082,56962.0,56961.0,0.558001]
[1725517596216,0.00082,56962.0,56961.0,0.43511]
[1725517596431,0.00082,56962.0,56961.0,0.558001]
[1725517596903,0.00082,56962.0,56961.0,0.43511]
[1725517597137,0.00082,56962.0,56961.0,0.5042006]
[1725517597359,0.00082,56962.0,56961.0,0.6270916]
[1725517597784,0.00082,56962.0,56961.0,0.8728736]
[1725517598235,0.00082,56962.0,56961.0,1.1416556]
[1725517598693,0.000819,56970.0,56967.0,0.122877]
[1725517598902,0.000819,56970.0,56965.0,0.280874]
[1725517598903,0.000819,56970.0,56969.0,0.122873]
[1725517599336,0.000819,56970.0,56968.0,0.0403751]
[1725517599556,0.123691,56970.0,56968.0,0.0403751]
[1725517599770,0.000819,56970.0,56968.0,0.0403751]
[1725517600198,0.36862,56969.0,56968.0,0.0403751]
[1725517600455,0.000819,56970.0,56961.0,0.4920906]
[1725517600456,0.000819,56970.0,56961.0,0.0690906]
[1725517600776,0.509057,56948.0,56947.0,0.17556026]
[1725517600927,0.1403,56948.0,56943.0,0.52650515]
[1725517601158,0.122925,56945.0,56943.0,0.52650515]
[1725517601380,0.1403,56948.0,56939.0,0.01]
[1725517601602,0.245877,56939.0,56932.0,0.122952]
[1725517601820,0.245877,56939.0,56933.0,0.0378862]
[1725517602047,0.122949,56934.0,56928.0,0.52650515]
[1725517602265,0.245855,56945.0,56928.0,0.52650515]
[1725517602266,0.245821,56952.0,56936.0,0.245889]
[1725517602530,0.35627862,56955.0,56941.0,0.03511]
[1725517602766,0.35627862,56955.0,56940.0,0.4]
[1725517602767,0.1408,56941.0,56940.0,0.4]
[1725517603459,0.620602,56941.0,56940.0,0.4]
[1725517603911,0.86647,56941.0,56940.0,0.4]
[1725517604128,0.620602,56941.0,56940.0,0.4]
[1725517604350,0.368815,56939.0,56938.0,0.4]
[1725517604826,0.374735,56941.0,56938.0,0.4]
[1725517605048,0.368815,56939.0,56938.0,0.4]
[1725517605260,0.2518,56941.0,56938.0,0.44]
[1725517605484,0.122938,56939.0,56938.0,0.04]
[1725517605705,0.2518,56941.0,56936.0,0.122943]
[1725517606152,0.2518,56941.0,56933.0,0.281009]
[1725517606153,0.2518,56941.0,56933.0,0.03511]
[1725517606396,0.2518,56941.0,56940.0,0.4]
[1725517606634,0.374734,56941.0,56940.0,0.4]
[1725517606849,0.2518,56941.0,56940.0,0.562936]
[1725517607059,0.2518,56941.0,56940.0,0.44]
[1725517607274,0.1408,56941.0,56940.0,0.562936]
[1725517607734,0.1408,56941.0,56940.0,0.808808]
[1725517608171,0.1131,56947.0,56940.0,0.808808]
[1725517608172,0.1448,56946.0,56941.0,0.368797]
[1725517608474,0.1448,56946.0,56945.0,0.122925]
[1725517608693,0.000814,56948.0,56942.0,0.0808797]
[1725517608923,0.000814,56948.0,56947.0,0.122921]
[1725517609135,0.02754575,56946.0,56942.0,0.0808797]
[1725517609344,0.02754575,56946.0,56943.0,0.19560237]
[1725517609558,0.02754575,56946.0,56945.0,0.122925]
[1725517609786,0.02754575,56946.0,56945.0,0.403886]
[1725517609995,0.000814,56948.0,56945.0,0.53032385]
[1725517610240,0.000814,56948.0,56947.0,0.614605]
[1725517610675,0.000814,56948.0,56947.0,0.649715]
[1725517611111,0.000814,56948.0,56947.0,0.64954291]
[1725517611333,0.000814,56948.0,56947.0,0.80370091]
[1725517612237,0.000814,56948.0,56947.0,0.803873]
[1725517612457,0.000814,56948.0,56947.0,0.67955306]
[1725517612677,0.000814,56948.0,56947.0,0.55646762]
[1725517612915,0.000814,56948.0,56947.0,0.4]
[1725517612916,0.615409,56948.0,56947.0,0.4]
[1725517613141,0.861247,56948.0,56947.0,0.4]
[1725517613370,0.861247,56948.0,56938.0,4e-05]
[1725517613371,0.246652,56948.0,56938.0,4e-05]
[1725517613597,0.245856,56944.0,56938.0,4e-05]
[1725517613831,0.245862,56943.0,56938.0,4e-05]
[1725517614089,0.000814,56948.0,56938.0,0.03515]
[1725517614314,0.122935,56941.0,56939.0,0.0158093]
[1725517614757,0.245862,56943.0,56939.0,0.01565606]
[1725517614758,0.122931,56943.0,56939.0,0.01565606]
[1725517614977,0.245857,56944.0,56938.0,4e-05]
[1725517615203,0.122934,56941.0,56938.0,0.03515]
[1725517615430,0.122933,56942.0,56938.0,0.03515]
[1725517615671,0.122932,56942.0,56938.0,0.15809]
[1725517615898,0.122932,56942.0,56940.0,0.03511]
[1725517616175,0.122934,56941.0,56940.0,0.03511]
[1725517616395,0.245857,56944.0,56941.0,0.4]
[1725517616618,0.122932,56942.0,56941.0,0.4]
[1725517616834,0.02836217,56948.0,56941.0,0.4]
[1725517617046,0.122929,56944.0,56941.0,0.4]
[1725517617292,0.12293,56943.0,56940.0,0.06306677]
[1725517617500,0.02754749,56947.0,56945.0,0.122925]
[1725517617975,0.02754749,56947.0,56946.0,0.368769]
[1725517618648,0.02754749,56947.0,56946.0,0.122923]
[1725517618883,0.02754749,56947.0,56941.0,0.45358312]
[1725517619101,0.02754749,56947.0,56946.0,0.122923]
[1725517619311,0.02754749,56947.0,56946.0,0.4079467]
[1725517619531,0.02754749,56947.0,56946.0,0.8079467]
[1725517619753,0.02754749,56947.0,56946.0,0.5621007]
[1725517620638,0.02754749,56947.0,56946.0,0.4391777]
[1725517620856,0.39631049,56947.0,56946.0,0.4391777]
[1725517621091,0.88799449,56947.0,56946.0,0.4391777]
[1725517621535,0.88799449,56947.0,56942.0,0.4]
[1725517621536,0.860506,56943.0,56942.0,0.4]
[1725517622016,0.614647,56943.0,56942.0,0.4]
[1725517622720,0.368788,56943.0,56942.0,0.4]
[1725517622975,0.614647,56943.0,56942.0,0.4]
[1725517623229,0.614647,56943.0,56938.0,0.001668]
[1725517623230,0.1764,56942.0,56938.0,0.001668]
[1725517623444,0.1764,56942.0,56916.0,0.070482]
[1725517623445,0.6147758,56907.0,56898.0,0.52650515]
[1725517623730,0.9142037,56907.0,56898.0,0.52650515]
[1725517623947,0.9142037,56907.0,56888.0,0.149]
[1725517623948,1.2602187,56907.0,56888.0,0.149]
[1725517624167,1.2602187,56907.0,56887.0,0.1167]
[1725517624168,1.27827818,56907.0,56887.0,0.1167]
[1725517624406,1.53462939,56907.0,56888.0,0.03862509]
[1725517624624,1.53462939,56907.0,56888.0,0.03511]
[1725517624625,1.5164187,56907.0,56888.0,0.03511]
[1725517625260,1.5164187,56907.0,56889.0,0.00351502]
[1725517626150,1.5164187,56907.0,56888.0,0.03511]
[1725517627248,1.54398716,56907.0,56888.0,0.03511]
[1725517629449,1.808944,56907.0,56886.0,0.00164]
[1725517629662,1.24455926,56907.0,56889.0,0.00351542]
[1725517629886,1.54398716,56907.0,56888.0,0.03511]
[1725517630352,1.54398716,56907.0,56886.0,0.00164]
[1725517630572,1.79000216,56907.0,56886.0,0.00164]
[1725517630789,1.54398716,56907.0,56886.0,0.00515539]
[1725517631011,1.7624337,56907.0,56886.0,0.00164]
[1725517631234,2.0184487,56907.0,56886.0,0.00164]
[1725517631449,1.79137554,56907.0,56886.0,0.00164]
[1725517631659,1.78137554,56907.0,56886.0,0.00164]
[1725517632980,1.4031187,56907.0,56892.0,0.14]
[1725517633451,1.4031187,56907.0,56886.0,0.00164]
[1725517633452,1.6491337,56907.0,56886.0,0.00164]
[1725517634124,1.2803729,56907.0,56886.0,0.00515541]
[1725517634350,1.4033799,56907.0,56886.0,0.00515541]
[1725517634562,1.6493949,56907.0,56886.0,0.00515541]
[1725517634764,1.4033799,56907.0,56886.0,0.00515541]
[1725517635228,1.6493949,56907.0,56886.0,0.00515541]
[1725517635448,1.4033799,56907.0,56886.0,0.00164]
[1725517635882,1.4033799,56907.0,56886.0,0.247743]
[1725517636115,1.4033799,56907.0,56886.0,0.00164]
[1725517636344,1.4033799,56907.0,56888.0,0.123048]
[1725517636603,1.6493949,56907.0,56886.0,0.00164]
[1725517636841,1.4033799,56907.0,56886.0,0.00164]
[1725517637304,1.4033799,56907.0,56886.0,0.124692]
[1725517637522,0.961052,56907.0,56895.0,0.2493]
[1725517637966,1.2604799,56907.0,56895.0,0.2493]
[1725517638185,1.2604799,56907.0,56896.0,0.00351482]
[1725517638415,1.2604799,56907.0,56895.0,0.2493]
[1725517638626,1.2604799,56907.0,56890.0,0.1418]
[1725517638852,1.5064949,56907.0,56890.0,0.1418]
[1725517639143,1.53406722,56907.0,56890.0,0.1418]
[1725517639371,1.28805222,56907.0,56890.0,0.1418]
[1725517639854,0.246063,56896.0,56890.0,0.26464546]
[1725517640074,0.246068,56895.0,56891.0,0.04148958]
[1725517640305,0.6152,56892.0,56891.0,0.03797455]
[1725517640799,0.36912,56892.0,56891.0,0.03797455]
[1725517641270,0.12304,56892.0,56891.0,0.03797455]
[1725517641503,0.123034,56895.0,56891.0,0.03797455]
[1725517641758,0.123037,56894.0,56892.0,0.0417719]
[1725517642460,0.3994279,56907.0,56892.0,0.04528702]
[1725517642695,0.12303,56897.0,56893.0,0.023]
[1725517642990,0.12303,56897.0,56894.0,0.0368078]
[1725517643950,0.3994279,56907.0,56894.0,0.0368078]
[1725517643951,0.246042,56901.0,56895.0,0.146033]
[1725517644179,0.123027,56898.0,56896.0,0.00351479]
[1725517644412,0.123029,56897.0,56895.0,0.023]
[1725517644689,0.123024,56900.0,56896.0,0.02211018]
[1725517644924,0.246037,56902.0,56895.0,0.14954686]
[1725517644925,0.123025,56899.0,56895.0,0.14954686]
[1725517645160,0.123027,56898.0,56895.0,0.02651486]
[1725517645394,0.123027,56898.0,56896.0,0.02246146]
[1725517646102,0.246048,56900.0,56895.0,0.023]
[1725517646335,0.123029,56897.0,56895.0,0.023]
[1725517646562,0.246048,56900.0,56895.0,0.023]
[1725517646976,0.123029,56897.0,56895.0,0.023]
[1725517647243,0.123026,56899.0,56895.0,0.023]
[1725517647478,0.123029,56898.0,56896.0,0.04671788]
[1725517647711,0.02756906,56897.0,56896.0,0.04671788]
[1725517647948,0.15059806,56897.0,56896.0,0.04671788]
[1725517648419,0.02756906,56897.0,56896.0,0.04671788]
[1725517649162,0.02756906,56897.0,56896.0,1.20533488]
[1725517649423,0.122982,56919.0,56911.0,0.03511]
[1725517649657,0.52650515,56921.0,56913.0,0.03511]
[1725517649902,0.01828548,56928.0,56913.0,0.03511]
[1725517649903,0.245938,56925.0,56917.0,0.245969]
[1725517650152,0.01828548,56928.0,56918.0,0.0265133]
[1725517650403,0.01828548,56928.0,56919.0,0.122981]
[1725517650667,0.01828548,56928.0,56920.0,0.0427065]
[1725517650885,0.245912,56931.0,56925.0,0.122968]
[1725517651119,0.122961,56929.0,56925.0,0.122968]
[1725517651344,0.122961,56929.0,56926.0,0.02651299]
[1725517651583,0.245912,56931.0,56927.0,0.0152994]
[1725517651813,0.122957,56931.0,56928.0,0.1135]
[1725517652316,0.245905,56933.0,56929.0,0.00351286]
[1725517652317,0.122953,56932.0,56929.0,0.00351286]
[1725517652562,0.000814,56948.0,56931.0,0.03511]
[1725517652795,0.122943,56937.0,56932.0,0.20755579]
[1725517653031,0.122948,56935.0,56933.0,0.03511]
[1725517653282,0.122948,56935.0,56932.0,0.023]
[1725517653283,0.122948,56935.0,56934.0,0.05811]
[1725517653496,0.24587,56941.0,56934.0,0.03511]
[1725517653724,0.122942,56937.0,56936.0,0.03511]
[1725517653973,0.122942,56937.0,56930.0,0.135]
[1725517653974,0.122955,56931.0,56930.0,0.135]
[1725517654183,0.368866,56931.0,56930.0,0.135]
[1725517654881,0.122955,56931.0,56930.0,0.135]
[1725517655321,0.614777,56931.0,56930.0,0.135]
[1725517655530,0.122955,56931.0,56930.0,0.135]
[1725517655739,0.122955,56931.0,56930.0,0.15985]
[1725517655976,0.245896,56935.0,56930.0,0.15985]
[1725517656205,0.3994279,56945.0,56931.0,0.05811]
[1725517656419,0.122953,56932.0,56931.0,0.023]
[1725517656639,0.36886,56932.0,56931.0,0.023]
[1725517657288,0.122953,56932.0,56931.0,0.023]
[1725517657498,0.122955,56931.0,56930.0,0.135]
[1725517657717,0.368866,56931.0,56930.0,0.15985]
[1725517658371,0.122955,56931.0,56930.0,0.15985]
[1725517658611,0.39641895,56931.0,56930.0,0.15985]
[1725517659047,0.15050795,56931.0,56930.0,0.15985]
[1725517659262,0.02755295,56931.0,56930.0,0.340918]
[1725517659487,0.02755295,56931.0,56930.0,0.34443076]
[1725517659708,0.02755295,56931.0,56930.0,0.340918]
[1725517659932,0.02755295,56931.0,56930.0,0.33915495]
[1725517660392,0.02755295,56931.0,56930.0,0.21619695]
[1725517660847,0.2459,56934.0,56930.0,0.21619695]
[1725517661076,0.368854,56933.0,56932.0,0.03511]
[1725517661431,0.122964,56927.0,56926.0,0.03511]
[1725517661433,0.122975,56922.0,56921.0,0.113]
[1725517661641,0.368925,56922.0,56921.0,0.113]
[1725517661845,0.614875,56922.0,56921.0,0.1243]
[1725517662052,0.614875,56922.0,56921.0,0.0113]
[1725517662286,0.614875,56922.0,56914.0,0.14411]
[1725517662287,0.61495,56915.0,56914.0,0.14411]
[1725517662500,0.245996,56912.0,56906.0,0.1138]
[1725517662766,0.369022,56907.0,56906.0,0.1138]
[1725517662998,0.245996,56912.0,56906.0,0.1138]
[1725517663214,0.245985,56914.0,56907.0,0.03511]
[1725517663463,0.123031,56896.0,56895.0,0.13463]
[1725517663676,0.123027,56898.0,56895.0,0.13463]
[1725517663882,0.123031,56896.0,56895.0,0.13463]
[1725517664343,0.246047,56900.0,56895.0,0.16974]
[1725517664553,0.123028,56898.0,56897.0,0.03511]
[1725517664967,0.123027,56898.0,56897.0,0.03511]
[1725517665417,0.615135,56898.0,56897.0,0.03674]
[1725517665647,0.615135,56898.0,56897.0,0.00163]
[1725517665893,0.615135,56898.0,56897.0,0.01803955]
[1725517666323,0.369081,56898.0,56897.0,0.01803955]
[1725517667174,0.615135,56898.0,56897.0,0.01803955]
[1725517667625,0.615135,56898.0,56897.0,0.00163]
[1725517668075,0.64270504,56898.0,56897.0,0.00163]
[1725517669421,0.002,56928.0,56897.0,0.00163]
[1725517669422,0.10948374,56924.0,56906.0,0.01]
[1725517669630,0.1319,56925.0,56907.0,0.15981417]
[1725517669631,0.2994279,56920.0,56907.0,0.15981417]
[1725517669832,0.245994,56912.0,56908.0,0.01698142]
[1725517670038,0.122999,56911.0,56909.0,0.023]
[1725517670253,0.123001,56910.0,56909.0,0.023]
[1725517671113,0.369003,56910.0,56909.0,0.023]
[1725517671342,0.369003,56910.0,56909.0,0.04032814]
[1725517671989,0.369003,56910.0,56902.0,0.03511]
[1725517671990,0.123016,56903.0,56902.0,0.03511]
[1725517672192,0.9145079,56903.0,56902.0,0.03511]
[1725517672411,0.861112,56903.0,56902.0,0.03511]
[1725517672622,0.61508,56903.0,56902.0,0.03511]
[1725517673096,0.86094002,56903.0,56902.0,0.03511]
[1725517673304,0.123016,56903.0,56902.0,0.03511]
[1725517673521,0.369048,56903.0,56902.0,0.03511]
[1725517673925,0.123016,56903.0,56902.0,0.03511]
[1725517674129,0.369048,56903.0,56902.0,0.03511]
[1725517674585,0.123016,56903.0,56902.0,0.05811]
[1725517675002,0.123013,56905.0,56902.0,0.05811]
[1725517675211,0.123007,56907.0,56902.0,0.05811]
[1725517675443,0.123007,56908.0,56903.0,0.05693028]
[1725517675663,0.12301,56906.0,56903.0,0.05693028]
[1725517676088,0.246009,56909.0,56903.0,0.17994528]
[1725517676300,0.123008,56907.0,56904.0,0.02150553]
[1725517676524,0.123003,56909.0,56904.0,0.14451753]
[1725517676770,0.245997,56912.0,56904.0,0.14451753]
[1725517676771,0.123001,56910.0,56906.0,0.123009]
[1725517676976,0.245983,56915.0,56905.0,0.24602]
[1725517677183,0.245983,56915.0,56907.0,0.1351]
[1725517677184,0.122997,56912.0,56907.0,0.1351]
[1725517677397,0.122997,56912.0,56908.0,0.06556255]
[1725517677603,0.122997,56912.0,56908.0,0.18856755]
[1725517677815,0.245973,56917.0,56908.0,0.31157255]
[1725517678054,0.122989,56916.0,56912.0,0.122995]
[1725517678276,0.122989,56916.0,56914.0,0.03511]
[1725517678489,0.12299,56915.0,56914.0,0.03511]
[1725517679364,0.122996,56912.0,56911.0,0.03511]
[1725517679576,0.122996,56912.0,56911.0,0.05811]
[1725517680450,0.02756162,56916.0,56911.0,0.05811]
[1725517680728,0.245957,56921.0,56912.0,0.0611821]
[1725517680936,0.1374,56930.0,56915.0,0.03511]
[1725517681170,0.1,56931.0,56919.0,0.1364]
[1725517681171,0.0275611,56927.0,56919.0,0.1364]
[1725517681392,0.122965,56927.0,56920.0,0.04280233]
[1725517681608,0.122977,56921.0,56920.0,0.01980233]
[1725517681812,0.368944,56919.0,56918.0,0.03511]
[1725517682028,0.368944,56919.0,56918.0,0.05811]
[1725517682235,0.122981,56919.0,56918.0,0.05811]
[1725517682647,0.122969,56925.0,56920.0,0.122979]
[1725517682880,0.122972,56924.0,56921.0,0.0181089]
[1725517683114,0.245922,56929.0,56922.0,0.023]
[1725517683327,0.100815,56934.0,56922.0,0.023]
[1725517683328,0.122956,56931.0,56923.0,0.0035131]
[1725517683558,0.122958,56930.0,56926.0,0.122966]
[1725517683783,0.000815,56934.0,56927.0,0.05474955]
[1725517684013,0.000815,56934.0,56929.0,0.227159]
[1725517684014,0.123765,56934.0,56929.0,0.227159]
[1725517684225,0.123765,56934.0,56930.0,0.05811]
[1725517684507,0.122952,56933.0,56930.0,0.05811]
[1725517684948,0.000815,56934.0,56930.0,0.023]
[1725517685162,0.000815,56934.0,56931.0,0.04013586]
[1725517685387,0.000815,56934.0,56932.0,0.023]
[1725517685606,0.000815,56934.0,56930.0,0.023]
[1725517685607,0.000815,56934.0,56931.0,0.00351261]
[1725517685842,0.000815,56934.0,56933.0,0.158061]
[1725517686071,0.000815,56934.0,56933.0,0.778557]
[1725517686294,0.000815,56934.0,56933.0,0.532654]
[1725517686522,0.000815,56934.0,56933.0,0.6219308]
[1725517686928,0.000815,56934.0,56933.0,0.2881868]
[1725517687146,0.00025528,56934.0,56933.0,0.3760278]
[1725517687356,0.00025528,56934.0,56933.0,0.2530768]
[1725517687559,0.00025528,56934.0,56933.0,0.1638]
[1725517687967,0.00025528,56934.0,56933.0,0.19891]
[1725517689408,0.00025528,56934.0,56933.0,0.321861]
[1725517689854,0.00025528,56934.0,56933.0,0.425361]
[1725517691149,0.00025528,56934.0,56933.0,0.30241]
[1725517691369,0.12320428,56934.0,56933.0,0.208738]
[1725517691603,0.00025528,56934.0,56929.0,0.03511]
[1725517691835,0.122955,56932.0,56929.0,0.03511]
[1725517692123,0.245912,56931.0,56929.0,0.03511]
[1725517692358,0.122958,56930.0,56929.0,0.03511]
[1725517692800,0.368874,56930.0,56929.0,0.03511]
[1725517693475,0.00025528,56934.0,56929.0,0.03511]
[1725517693889,0.245904,56933.0,56929.0,0.03511]
[1725517694110,0.368874,56930.0,56929.0,0.03511]
[1725517694323,0.368874,56930.0,56929.0,0.085751]
[1725517694791,0.61479,56930.0,56929.0,0.085751]
[1725517695002,0.122958,56930.0,56929.0,0.085751]
[1725517695214,0.9142179,56930.0,56929.0,0.027641]
[1725517695445,0.9142179,56930.0,56917.0,0.01]
[1725517695446,0.2994279,56930.0,56917.0,0.1365]
[1725517695653,0.245946,56924.0,56918.0,0.52650515]
[1725517695910,0.122981,56919.0,56918.0,0.02401]
[1725517696154,0.122969,56925.0,56918.0,0.02401]
[1725517696393,0.07794342,56934.0,56919.0,0.01956426]
[1725517696609,0.122981,56919.0,56918.0,0.02401]
[1725517696817,0.245942,56924.0,56918.0,0.02401]
[1725517697027,0.122981,56919.0,56918.0,0.02401]
[1725517697250,0.122978,56921.0,56918.0,0.02401]
[1725517697494,0.122978,56921.0,56918.0,0.02752345]
[1725517697710,0.02755683,56922.0,56919.0,0.00351343]
[1725517697921,0.02755683,56922.0,56919.0,0.00351338]
[1725517698122,0.122978,56921.0,56920.0,0.023]
[1725517698345,0.02755683,56922.0,56920.0,0.02651335]
[1725517698558,0.02755683,56922.0,56920.0,0.02651323]
[1725517700122,0.02755683,56922.0,56921.0,0.122977]
[1725517700352,0.02755683,56922.0,56921.0,0.19674662]
[1725517700570,0.245902,56934.0,56921.0,0.19674662]
[1725517700571,0.00041603,56940.0,56924.0,0.1045]
[1725517700788,0.122948,56935.0,56926.0,0.122966]
[1725517701047,0.24629203,56940.0,56928.0,0.1318]
[1725517701048,0.245876,56940.0,56928.0,0.1318]
[1725517701259,0.245876,56940.0,56929.0,0.00351238]
[1725517701486,0.245853,56945.0,56929.0,0.00351238]
[1725517701487,0.122933,56942.0,56933.0,0.122951]
[1725517701699,0.24586,56943.0,56933.0,0.122951]
[1725517701905,0.24586,56943.0,56934.0,0.06339834]
[1725517701906,0.122934,56941.0,56934.0,0.06339834]
[1725517702113,0.122934,56941.0,56934.0,0.02651214]
[1725517702538,0.122932,56942.0,56934.0,0.02651214]
[1725517702740,0.122928,56944.0,56934.0,0.14946014]
[1725517702947,0.246659,56947.0,56935.0,0.17503621]
[1725517703171,0.000814,56947.0,56938.0,0.122939]
[1725517703393,0.000814,56947.0,56939.0,0.14944879]
[1725517703647,0.122924,56946.0,56940.0,0.05238358]
[1725517703881,0.000814,56947.0,56941.0,0.00351183]
[1725517703882,0.123735,56947.0,56941.0,0.00351183]
[1725517704098,0.123735,56947.0,56942.0,0.0265118]
[1725517704305,0.000814,56947.0,56943.0,0.00351179]
[1725517704516,0.000814,56947.0,56944.0,0.023]
[1725517704747,0.000814,56947.0,56946.0,0.1311]
[1725517704998,0.000814,56947.0,56946.0,0.1541]
[1725517705241,0.000814,56947.0,56946.0,0.277023]
[1725517705468,0.000814,56947.0,56946.0,0.883915]
[1725517706423,0.000814,56947.0,56946.0,0.941165]
[1725517706652,0.000814,56947.0,56946.0,1.33537962]
[1725517707622,0.000814,56947.0,56946.0,1.33737962]
[1725517709278,0.02754088,56956.0,56955.0,0.655062]
[1725517709524,0.000814,56962.0,56961.0,0.168141]
[1725517709723,0.000814,56962.0,56961.0,0.54933316]
[1725517709932,0.000814,56962.0,56961.0,0.63084528]
[1725517710410,0.000814,56962.0,56961.0,0.65384528]
[1725517711083,0.000814,56962.0,56961.0,0.27166212]
[1725517711311,0.000814,56962.0,56961.0,0.03525]
[1725517711312,0.123702,56962.0,56961.0,0.03525]
[1725517711599,0.369479,56962.0,56961.0,0.03525]
[1725517712264,0.123702,56962.0,56961.0,0.03525]
[1725517712491,0.122894,56960.0,56957.0,0.1296]
[1725517712726,0.000814,56962.0,56958.0,0.02388]
[1725517712986,0.122892,56961.0,56958.0,0.02388]
[1725517713210,0.122892,56961.0,56959.0,0.023]
[1725517713439,0.123703,56962.0,56959.0,0.023]
[1725517713667,0.123703,56962.0,56960.0,0.018648]
[1725517713668,0.122891,56961.0,56960.0,0.018648]
[1725517713898,0.122891,56961.0,56960.0,0.041648]
[1725517714418,0.000814,56962.0,56960.0,0.041648]
[1725517714642,0.123702,56962.0,56961.0,0.023]
[1725517714867,0.123702,56962.0,56961.0,0.0435128]
[1725517715534,0.000814,56962.0,56961.0,0.0435128]
[1725517716404,0.123702,56962.0,56961.0,0.0435128]
[1725517716623,0.369479,56962.0,56961.0,0.0435128]
[1725517717092,0.123702,56962.0,56961.0,0.0435128]
[1725517718419,0.369479,56962.0,56961.0,0.0435128]
[1725517718627,0.123702,56962.0,56961.0,0.0435128]
[1725517719052,0.369479,56962.0,56961.0,0.0435128]
[1725517719363,0.000814,56962.0,56961.0,0.0435128]
[1725517720828,0.123702,56962.0,56961.0,0.0435128]
[1725517721251,0.369479,56962.0,56961.0,0.0435128]
[1725517721838,0.123702,56962.0,56961.0,0.0435128]
[1725517722921,0.000814,56962.0,56961.0,0.0435128]
[1725517723150,0.000814,56962.0,56961.0,0.0787628]
[1725517723962,0.123702,56962.0,56961.0,0.0787628]
[1725517724168,0.000814,56962.0,56961.0,0.0787628]
[1725517724823,0.000814,56962.0,56961.0,0.08227345]
[1725517725264,0.000814,56962.0,56961.0,0.21516439]
[1725517725480,0.000814,56962.0,56961.0,0.4574358]
[1725517728467,0.000814,56962.0,56961.0,0.5822358]
[1725517728919,0.000814,56962.0,56961.0,0.8280178]
[1725517729126,0.000814,56962.0,56961.0,0.5822358]
[1725517729606,0.000814,56962.0,56961.0,0.8280178]
[1725517729842,0.000814,56962.0,56961.0,0.9364178]
[1725517730938,0.000814,56962.0,56961.0,0.4448538]
[1725517731151,0.000814,56962.0,56961.0,0.6906358]
[1725517731988,0.000814,56962.0,56961.0,0.3119628]
[1725517733097,0.000814,56962.0,56961.0,0.4348538]
[1725517733305,0.000814,56962.0,56961.0,1.17925113]
[1725517735160,0.000814,56962.0,56961.0,1.42703313]
[1725517735396,0.000814,56962.0,56961.0,1.44503313]
[1725517735639,0.000814,56962.0,56961.0,1.44152268]
[1725517738093,0.000814,56962.0,56961.0,0.3419628]
[1725517738304,0.000814,56962.0,56961.0,0.3219628]
[1725517739237,0.000814,56962.0,56961.0,0.0557628]
[1725517739238,0.123702,56962.0,56961.0,0.0557628]
[1725517739475,0.861033,56962.0,56961.0,0.0205128]
[1725517739695,0.861033,56962.0,56954.0,0.01]
[1725517739696,0.122902,56956.0,56954.0,0.01]
[1725517739919,0.245793,56959.0,56954.0,0.01]
[1725517740211,0.122896,56959.0,56955.0,0.00351107]
[1725517740688,0.122893,56960.0,56955.0,0.03876107]
[1725517740903,0.246593,56962.0,56955.0,0.03876107]
[1725517741374,0.122893,56960.0,56957.0,0.03525]
[1725517741590,0.123703,56962.0,56959.0,0.03525]
[1725517741814,0.122891,56961.0,56960.0,0.023]
[1725517742019,0.123704,56962.0,56960.0,0.023]
[1725517742725,0.000814,56962.0,56960.0,0.023]
[1725517742938,0.000814,56962.0,56961.0,0.00351064]
[1725517743152,0.000814,56962.0,56961.0,0.04296749]
[1725517743379,0.000814,56962.0,56961.0,0.023]
[1725517743595,0.000814,56962.0,56960.0,0.023]
[1725517744713,0.122891,56961.0,56960.0,0.023]
[1725517745411,0.246592,56962.0,56955.0,0.01]
[1725517745412,0.369482,56962.0,56958.0,0.03525]
[1725517745641,0.122893,56960.0,56959.0,0.05825]